bitfinex/quotes_BTCUSD_20250211
["timestamp","ask_amount","ask_price","bid_price","bid_amount"]
[1739292649968,0.155253,96617.0,96612.0,0.23553696]
[1739292650186,0.0001067,96618.0,96612.0,0.23553696]
[1739292650501,0.157253,96616.0,96612.0,0.23553696]
[1739292650859,0.002,96616.0,96612.0,0.23553696]
[1739292651686,0.155253,96617.0,96612.0,0.23553696]
[1739292651907,0.002,96616.0,96612.0,0.23553696]
[1739292652112,0.157255,96616.0,96612.0,0.23553696]
[1739292652381,0.157255,96616.0,96612.0,0.19153695]
[1739292652584,0.155255,96616.0,96612.0,0.19153695]
[1739292653196,0.157255,96616.0,96612.0,0.19153695]
[1739292653900,0.002,96616.0,96612.0,0.19153695]
[1739292654561,0.004,96616.0,96612.0,0.19153695]
[1739292654820,0.155258,96613.0,96612.0,0.19153695]
[1739292655716,0.386958,96613.0,96612.0,0.19153695]
[1739292655923,0.49946165,96613.0,96612.0,0.19153695]
[1739292657144,0.64946165,96613.0,96612.0,0.19153695]
[1739292657385,0.50046165,96613.0,96612.0,0.14753694]
[1739292657518,0.65046165,96613.0,96612.0,0.14753694]
[1739292657713,0.64946165,96613.0,96612.0,0.14753694]
[1739292657924,0.65946165,96613.0,96612.0,0.14753694]
[1739292658366,0.66568156,96613.0,96612.0,0.14753694]
[1739292658541,0.68668156,96613.0,96612.0,0.14853694]
[1739292658764,0.68068156,96613.0,96612.0,0.14853694]
[1739292659206,0.68768156,96613.0,96612.0,0.14853694]
[1739292659381,0.67268156,96613.0,96612.0,0.14753694]
[1739292660117,0.68768156,96613.0,96612.0,0.14853694]
[1739292660531,0.68068156,96613.0,96612.0,0.14853694]
[1739292660731,0.68768156,96613.0,96612.0,0.14853694]
[1739292661134,0.68068156,96613.0,96612.0,0.14853694]
[1739292661377,0.67268156,96613.0,96612.0,0.14753694]
[1739292661869,0.67268156,96613.0,96612.0,0.14853694]
[1739292661870,0.68768156,96613.0,96612.0,0.14853694]
[1739292662013,0.68768156,96613.0,96612.0,0.09853694]
[1739292662209,0.68768156,96613.0,96612.0,0.05353693]
[1739292662210,0.67268156,96613.0,96612.0,0.05353693]
[1739292662413,0.68768156,96613.0,96612.0,0.05453693]
[1739292662844,0.68768156,96613.0,96612.0,0.05353693]
[1739292663057,0.67268156,96613.0,96612.0,0.05353693]
[1739292663387,0.68768156,96613.0,96612.0,0.05453693]
[1739292663554,0.68068156,96613.0,96612.0,0.05453693]
[1739292663739,0.68768156,96613.0,96612.0,0.05453693]
[1739292664371,0.69468156,96613.0,96612.0,0.05453693]
[1739292664566,0.67968156,96613.0,96612.0,0.05353693]
[1739292664791,0.67978816,96613.0,96612.0,0.05453693]
[1739292665017,0.69478816,96613.0,96612.0,0.05453693]
[1739292665364,0.67978816,96613.0,96612.0,0.05353693]
[1739292665773,0.69478816,96613.0,96612.0,0.05453693]
[1739292666188,0.69478816,96613.0,96612.0,0.05353693]
[1739292666189,0.67978816,96613.0,96612.0,0.05353693]
[1739292666390,0.67978816,96613.0,96612.0,0.05453693]
[1739292666594,0.68078816,96613.0,96612.0,0.05453693]
[1739292667208,0.68078816,96613.0,96612.0,0.01053692]
[1739292667406,0.68778816,96613.0,96612.0,0.01053692]
[1739292667615,0.68078816,96613.0,96612.0,0.01053692]
[1739292667829,0.66578816,96613.0,96612.0,0.00953692]
[1739292668002,0.68678816,96613.0,96612.0,0.00953692]
[1739292668566,0.66578816,96613.0,96612.0,0.00953692]
[1739292668907,0.67778816,96613.0,96612.0,0.00953692]
[1739292669627,0.72698816,96613.0,96612.0,0.00953692]
[1739292669763,0.73398816,96613.0,96612.0,0.00953692]
[1739292670196,0.72698816,96613.0,96612.0,0.00953692]
[1739292670618,0.73398816,96613.0,96612.0,0.00953692]
[1739292671102,0.72198816,96613.0,96612.0,0.00953692]
[1739292671323,0.71498816,96613.0,96612.0,0.00953692]
[1739292671536,0.74386816,96613.0,96612.0,0.00953692]
[1739292671998,0.72986816,96613.0,96612.0,0.00953692]
[1739292672201,0.1,96609.0,96600.0,0.20654336]
[1739292672402,0.315277,96601.0,96600.0,0.20654336]
[1739292672628,0.69268065,96601.0,96600.0,0.20654336]
[1739292673784,0.69968065,96601.0,96600.0,0.20654336]
[1739292674005,0.67268065,96601.0,96600.0,0.12372136]
[1739292674232,0.85187571,96601.0,96600.0,0.10301536]
[1739292674416,0.85187571,96601.0,96564.0,0.08270615]
[1739292674417,0.305335,96565.0,96564.0,0.08270615]
[1739292674577,0.826339,96565.0,96564.0,0.08270615]
[1739292674777,0.15,96564.0,96555.0,0.06796845]
[1739292675074,0.15535,96556.0,96555.0,0.06796845]
[1739292675486,0.376004,96565.0,96555.0,0.11636845]
[1739292675687,0.01288,96565.0,96555.0,0.11636845]
[1739292675900,0.15534,96562.0,96555.0,0.11636845]
[1739292676103,0.155342,96561.0,96555.0,0.11636845]
[1739292676310,0.155343,96561.0,96555.0,0.11636845]
[1739292676532,0.15,96563.0,96555.0,0.11636845]
[1739292676533,0.35712,96563.0,96555.0,0.11636845]
[1739292676740,0.7202239,96563.0,96555.0,0.11636845]
[1739292676959,0.155342,96561.0,96555.0,0.11636845]
[1739292677173,0.3631039,96563.0,96555.0,0.07236844]
[1739292677379,0.004,96561.0,96555.0,0.07236844]
[1739292677693,0.00044463,96565.0,96555.0,0.07236844]
[1739292677851,0.004,96563.0,96555.0,0.07340383]
[1739292678047,0.002,96561.0,96555.0,0.07236844]
[1739292678473,0.00044463,96565.0,96555.0,0.07236844]
[1739292678886,0.00144463,96565.0,96555.0,0.07236844]
[1739292679277,0.207119,96563.0,96555.0,0.07236844]
[1739292679483,0.155345,96559.0,96555.0,0.07236844]
[1739292679691,0.002,96561.0,96555.0,0.07236844]
[1739292679896,0.15535,96556.0,96555.0,0.02396844]
[1739292681142,0.15635,96556.0,96555.0,0.02396844]
[1739292681308,0.16135,96556.0,96555.0,0.02396844]
[1739292681686,0.16035,96556.0,96555.0,0.02396844]
[1739292681887,0.16135,96556.0,96555.0,0.02396844]
[1739292682084,0.16135,96556.0,96545.0,0.0185]
[1739292682288,0.15536,96550.0,96544.0,0.03102678]
[1739292682534,0.155362,96549.0,96544.0,0.03102678]
[1739292682739,0.3631458,96550.0,96544.0,0.03102678]
[1739292683385,0.155355,96554.0,96544.0,0.03102678]
[1739292683586,0.002,96550.0,96544.0,0.03102678]
[1739292684122,0.002,96550.0,96549.0,0.235861]
[1739292684328,0.003,96556.0,96544.0,0.03102678]
[1739292684528,0.003,96554.0,96546.0,0.155366]
[1739292684880,0.001,96550.0,96548.0,0.0805]
[1739292685442,0.003,96554.0,96548.0,0.0805]
[1739292685853,0.155345,96559.0,96548.0,0.0805]
[1739292686072,0.207121,96562.0,96548.0,0.0805]
[1739292686272,0.155344,96560.0,96548.0,0.0805]
[1739292686688,0.002,96554.0,96548.0,0.0805]
[1739292687087,0.155345,96559.0,96548.0,0.0805]
[1739292687250,0.155345,96559.0,96548.0,0.03649999]
[1739292688010,0.001,96554.0,96548.0,0.03649999]
[1739292688364,0.001,96554.0,96548.0,0.03672406]
[1739292689084,0.001,96559.0,96548.0,0.03672406]
[1739292689280,0.001,96559.0,96548.0,0.00022407]
[1739292689491,0.004,96559.0,96548.0,0.00022407]
[1739292689714,0.00788,96564.0,96548.0,0.00022407]
[1739292689992,0.157354,96554.0,96548.0,0.00022407]
[1739292690227,0.002,96554.0,96548.0,0.00022407]
[1739292690548,0.155346,96559.0,96548.0,0.00022407]
[1739292690751,0.003,96559.0,96548.0,0.00022407]
[1739292690917,0.207118,96563.0,96548.0,0.00022407]
[1739292691120,0.155345,96559.0,96548.0,0.00022407]
[1739292691301,0.207128,96559.0,96548.0,0.00022407]
[1739292691501,0.00788,96564.0,96548.0,0.00022407]
[1739292691697,0.155361,96549.0,96548.0,0.00022407]
[1739292691903,0.155358,96551.0,96548.0,0.00022407]
[1739292692107,0.0794,96559.0,96543.0,0.0011]
[1739292692313,0.15,96557.0,96541.0,0.10409886]
[1739292692514,0.155372,96542.0,96541.0,0.1039597]
[1739292692737,0.001,96554.0,96541.0,0.1039597]
[1739292692942,0.155367,96546.0,96541.0,0.1039597]
[1739292693153,0.46567205,96546.0,96541.0,0.1039597]
[1739292693358,0.155372,96542.0,96541.0,0.1039597]
[1739292693577,0.383772,96542.0,96541.0,0.1039597]
[1739292693919,0.64627565,96542.0,96541.0,0.1039597]
[1739292694535,0.72492904,96542.0,96541.0,0.0418087]
[1739292694688,0.76280904,96542.0,96541.0,0.0003747]
[1739292694895,0.71505565,96542.0,96541.0,0.0003747]
[1739292695266,0.73370217,96542.0,96541.0,0.0003747]
[1739292695491,0.66715565,96542.0,96541.0,0.0003747]
[1739292695726,0.313,96542.0,96541.0,0.0003747]
[1739292695936,0.01388,96542.0,96541.0,0.0003747]
[1739292696163,0.006,96542.0,96541.0,0.25825235]
[1739292696363,0.02,96542.0,96541.0,0.25825235]
[1739292696570,0.014,96542.0,96541.0,0.25825235]
[1739292696773,0.207111,96567.0,96541.0,0.10287835]
[1739292697135,0.155343,96561.0,96542.0,0.10353907]
[1739292697279,0.155343,96561.0,96546.0,0.149366]
[1739292697685,0.00788,96569.0,96547.0,0.00103545]
[1739292697895,0.00255133,96565.0,96551.0,0.155356]
[1739292698156,0.00255133,96565.0,96546.0,0.16676078]
[1739292698387,0.00255133,96565.0,96547.0,0.00103537]
[1739292698588,0.09202345,96550.0,96548.0,0.207148]
[1739292698788,0.09202345,96550.0,96549.0,0.155361]
[1739292698916,0.09202345,96550.0,96549.0,0.25786465]
[1739292700254,0.09402345,96550.0,96549.0,0.25786465]
[1739292700470,0.09402345,96550.0,96549.0,0.26086465]
[1739292701913,0.09402345,96550.0,96549.0,0.81876465]
[1739292702109,0.09402345,96550.0,96549.0,0.86506465]
[1739292702346,0.09402345,96550.0,96549.0,0.68670365]
[1739292702555,0.157359,96550.0,96549.0,0.003]
[1739292702776,0.5205052,96550.0,96549.0,0.003]
[1739292702978,0.3651462,96550.0,96549.0,0.003]
[1739292703396,0.3631462,96550.0,96540.0,0.02]
[1739292703681,0.15,96562.0,96549.0,0.002]
[1739292703838,0.155357,96552.0,96549.0,0.001]
[1739292704058,0.155356,96552.0,96540.0,0.02]
[1739292704254,0.003,96550.0,96540.0,0.02]
[1739292704508,0.15,96562.0,96540.0,0.02]
[1739292704679,0.155356,96553.0,96540.0,0.02]
[1739292704846,0.155358,96552.0,96540.0,0.02]
[1739292705253,0.155354,96554.0,96540.0,0.02]
[1739292705455,0.15,96562.0,96541.0,0.0016343]
[1739292705655,0.01,96569.0,96542.0,0.00103549]
[1739292705854,0.155358,96551.0,96542.0,0.00103549]
[1739292706055,0.155358,96551.0,96541.0,0.00059877]
[1739292706276,0.001,96552.0,96541.0,0.00059877]
[1739292706449,0.15536,96550.0,96541.0,0.00159877]
[1739292706650,0.155365,96547.0,96541.0,0.00159877]
[1739292706869,0.155361,96549.0,96541.0,0.00159877]
[1739292707156,0.156359,96551.0,96536.0,0.13298076]
[1739292707599,0.15536,96550.0,96541.0,0.001]
[1739292707871,0.001,96551.0,96533.0,0.05249141]
[1739292708072,0.155369,96545.0,96536.0,0.00103556]
[1739292708284,0.155369,96545.0,96534.0,0.00103561]
[1739292708473,0.155369,96545.0,96533.0,0.05249141]
[1739292708474,0.002,96549.0,96533.0,0.05352702]
[1739292708649,0.155363,96548.0,96535.0,0.00629379]
[1739292708828,0.155365,96547.0,96535.0,0.00629379]
[1739292709034,0.155367,96546.0,96535.0,0.00629379]
[1739292709625,0.155365,96547.0,96535.0,0.00629379]
[1739292709905,0.207154,96547.0,96536.0,0.05748774]
[1739292710037,0.155361,96549.0,96536.0,0.21286974]
[1739292710244,0.001,96546.0,96536.0,0.15999139]
[1739292710448,0.002,96546.0,96545.0,0.155367]
[1739292710667,0.001,96546.0,96545.0,0.95520603]
[1739292710873,0.001,96546.0,96545.0,1.0566743]
[1739292711029,0.001,96546.0,96545.0,0.95417065]
[1739292711484,0.00788,96572.0,96555.0,0.01]
[1739292711674,0.00788,96572.0,96562.0,0.155339]
[1739292712016,0.00788,96572.0,96555.0,0.01]
[1739292712228,0.155328,96570.0,96556.0,0.00103533]
[1739292712362,0.163204,96572.0,96559.0,0.155345]
[1739292712704,0.00155133,96565.0,96555.0,0.11250365]
[1739292712931,0.00155133,96565.0,96559.0,0.155344]
[1739292713071,0.00155133,96565.0,96555.0,0.11250365]
[1739292713445,0.00155133,96565.0,96545.0,0.5846]
[1739292713559,0.00155133,96565.0,96546.0,0.10353898]
[1739292713780,0.155339,96563.0,96548.0,0.155361]
[1739292714033,0.155339,96563.0,96547.0,0.155364]
[1739292714277,0.15534,96562.0,96547.0,0.25786765]
[1739292714504,0.00255133,96565.0,96545.0,0.5846]
[1739292714705,0.155337,96564.0,96545.0,0.5349]
[1739292714878,0.155345,96560.0,96555.0,0.004]
[1739292715550,0.155345,96560.0,96545.0,0.690267]
[1739292715757,0.00255133,96565.0,96546.0,0.18624527]
[1739292715996,0.00255133,96565.0,96546.0,0.63843912]
[1739292716170,0.00055133,96565.0,96549.0,0.15536]
[1739292716511,0.001,96560.0,96555.0,0.005]
[1739292716933,0.001,96560.0,96556.0,0.15638438]
[1739292717148,0.001,96560.0,96556.0,0.00103538]
[1739292717461,0.001,96560.0,96556.0,0.15535]
[1739292717715,0.00055133,96565.0,96564.0,0.155337]
[1739292718141,0.00155133,96565.0,96564.0,0.25784065]
[1739292718455,0.00055133,96565.0,96564.0,0.3933443]
[1739292718960,0.00155133,96565.0,96564.0,0.29484065]
[1739292719816,0.00155133,96565.0,96564.0,0.29084065]
[1739292720101,0.00055133,96565.0,96564.0,0.29084065]
[1739292720303,0.00055133,96565.0,96562.0,0.5349]
[1739292720520,0.00055133,96565.0,96564.0,0.004]
[1739292720653,0.00055133,96565.0,96564.0,0.00503519]
[1739292720841,0.00055133,96565.0,96564.0,0.004]
[1739292721036,0.00055133,96565.0,96563.0,0.10250365]
[1739292721482,0.00055133,96565.0,96564.0,0.009]
[1739292721685,0.00155133,96565.0,96564.0,0.009]
[1739292722099,0.00055133,96565.0,96545.0,0.5349]
[1739292722299,0.155349,96557.0,96545.0,0.49089999]
[1739292722494,0.00055133,96565.0,96545.0,0.49089999]
[1739292722716,0.155347,96558.0,96546.0,0.04430933]
[1739292722964,0.155349,96557.0,96546.0,0.0432739]
[1739292723672,0.00055133,96565.0,96545.0,0.49089999]
[1739292723673,0.00455133,96565.0,96545.0,0.49089999]
[1739292724082,0.155352,96555.0,96545.0,0.49089999]
[1739292724384,0.00055133,96565.0,96546.0,0.001]
[1739292724557,0.155346,96559.0,96546.0,0.001]
[1739292724759,0.155348,96558.0,96546.0,0.001]
[1739292725574,0.00055133,96565.0,96545.0,0.49089999]
[1739292725746,0.001,96559.0,96549.0,0.15536]
[1739292725948,0.001,96559.0,96553.0,0.207138]
[1739292726150,0.001,96559.0,96558.0,0.155347]
[1739292726355,0.0001067,96561.0,96559.0,0.155344]
[1739292726555,0.0001067,96561.0,96560.0,0.15637834]
[1739292726874,0.0001067,96561.0,96560.0,0.32087835]
[1739292727075,0.0001067,96561.0,96560.0,0.32984301]
[1739292727918,0.0001067,96561.0,96560.0,0.810243]
[1739292728324,0.0001067,96561.0,96560.0,0.809243]
[1739292729033,0.0001067,96561.0,96560.0,0.812243]
[1739292729600,0.0011067,96561.0,96560.0,0.824243]
[1739292730973,0.0011067,96561.0,96560.0,0.974243]
[1739292731505,0.0001067,96561.0,96560.0,0.962243]
[1739292731699,0.0001067,96561.0,96560.0,0.959243]
[1739292732070,0.0011067,96561.0,96560.0,0.976243]
[1739292732268,0.0001067,96561.0,96560.0,0.92024299]
[1739292732626,0.0011067,96561.0,96560.0,0.93524299]
[1739292733664,0.0011067,96561.0,96560.0,0.95576519]
[1739292735404,0.0011067,96561.0,96560.0,1.03746519]
[1739292735953,0.0001067,96561.0,96560.0,1.01746519]
[1739292736108,0.0001067,96561.0,96560.0,1.03946519]
[1739292736320,0.0011067,96561.0,96560.0,1.03946519]
[1739292737312,0.0011067,96561.0,96560.0,0.99546518]
[1739292738233,0.0011067,96561.0,96560.0,1.00513301]
[1739292742154,0.0011067,96561.0,96560.0,1.06363665]
[1739292742970,0.0011067,96561.0,96560.0,1.05663665]
[1739292743377,0.0011067,96561.0,96560.0,1.04663665]
[1739292743578,0.0011067,96561.0,96560.0,1.05663665]
[1739292743866,0.0001067,96561.0,96560.0,1.04163665]
[1739292744141,0.0001067,96561.0,96560.0,1.05663665]
[1739292744371,0.0001067,96561.0,96560.0,1.06363665]
[1739292744581,0.0001067,96561.0,96560.0,1.05194633]
[1739292744788,0.0001067,96561.0,96560.0,1.04163665]
[1739292744995,0.0001067,96561.0,96560.0,0.95893665]
[1739292745197,0.0001067,96561.0,96560.0,0.76991447]
[1739292745404,0.0001067,96561.0,96560.0,0.77991447]
[1739292745640,0.0001067,96561.0,96560.0,0.95291447]
[1739292745849,0.0001067,96561.0,96560.0,1.12421447]
[1739292746146,0.0001067,96561.0,96560.0,1.24421447]
[1739292746547,0.0001067,96561.0,96560.0,1.23454664]
[1739292746775,0.0001067,96561.0,96560.0,1.36005029]
[1739292746973,0.0001067,96561.0,96560.0,1.34505029]
[1739292747274,0.0001067,96561.0,96560.0,1.20470729]
[1739292747447,0.0001067,96561.0,96560.0,1.36705029]
[1739292747645,0.0001067,96561.0,96560.0,1.35705029]
[1739292747849,0.0001067,96561.0,96560.0,0.77414665]
[1739292748084,0.0001067,96561.0,96560.0,0.3433]
[1739292749396,0.01929163,96561.0,96560.0,0.3363]
[1739292749950,0.01929163,96561.0,96560.0,0.3213]
[1739292750154,0.01929163,96561.0,96560.0,0.3333]
[1739292750408,0.01929163,96561.0,96560.0,0.33352407]
[1739292750822,0.01929163,96561.0,96560.0,0.32552407]
[1739292750967,0.01929163,96561.0,96560.0,0.33752407]
[1739292751446,0.17463363,96561.0,96560.0,0.33752407]
[1739292751651,0.17463363,96561.0,96560.0,0.32552407]
[1739292752061,0.01929163,96561.0,96560.0,0.32352407]
[1739292752267,0.17463363,96561.0,96560.0,0.27952406]
[1739292753628,0.17463363,96561.0,96560.0,0.27752406]
[1739292753832,0.47653363,96561.0,96560.0,0.00022407]
[1739292754041,0.16538,96537.0,96520.0,0.00022407]
[1739292754250,5.8654328,96537.0,96520.0,0.00022407]
[1739292754447,4.17411411,96537.0,96520.0,0.00022407]
[1739292754685,4.14361773,96537.0,96520.0,0.00022407]
[1739292755047,4.24612138,96537.0,96520.0,0.00022407]
[1739292755447,4.29983032,96537.0,96536.0,0.00122407]
[1739292756261,4.29983032,96537.0,96536.0,0.00056013]
[1739292756606,4.30683032,96537.0,96536.0,0.00156013]
[1739292756738,4.30683032,96537.0,96536.0,0.001]
[1739292756942,4.28764539,96537.0,96536.0,0.002]
[1739292757136,4.12526539,96537.0,96533.0,0.0094914]
[1739292757424,0.315385,96534.0,96533.0,0.0094914]
[1739292757622,1.52808865,96534.0,96533.0,0.0094914]
[1739292757777,2.56459759,96534.0,96533.0,0.0094914]
[1739292757935,3.05899759,96534.0,96533.0,0.0094914]
[1739292758150,4.86529759,96534.0,96533.0,0.0094914]
[1739292758347,4.86529759,96534.0,96533.0,0.0104914]
[1739292758348,4.57059759,96534.0,96533.0,0.0104914]
[1739292758571,4.16283301,96534.0,96533.0,0.0114914]
[1739292758806,4.12293301,96534.0,96533.0,0.0114914]
[1739292758964,1.35664195,96534.0,96533.0,0.0114914]
[1739292759557,5.49471521,96534.0,96533.0,0.0114914]
[1739292759768,5.49471521,96534.0,96533.0,0.0094914]
[1739292759920,5.50171521,96534.0,96533.0,0.0104914]
[1739292760117,5.52077639,96534.0,96533.0,0.0114914]
[1739292760316,5.59987639,96534.0,96533.0,0.0104914]
[1739292760551,5.60687639,96534.0,96533.0,0.0104914]
[1739292760901,5.60187639,96534.0,96533.0,0.0104914]
[1739292761225,5.60887639,96534.0,96533.0,0.0114914]
[1739292761432,5.60687639,96534.0,96533.0,0.0104914]
[1739292761632,5.60687639,96534.0,96533.0,0.0114914]
[1739292761838,5.60887639,96534.0,96533.0,0.0114914]
[1739292762196,5.60887639,96534.0,96510.0,0.0111008]
[1739292762197,0.384522,96511.0,96510.0,0.0111008]
[1739292762395,0.7741999,96511.0,96510.0,0.0111008]
[1739292763154,0.79326108,96511.0,96510.0,0.0111008]
[1739292763442,0.80114108,96511.0,96510.0,0.0111008]
[1739292763586,0.91364473,96511.0,96510.0,0.0121008]
[1739292763788,0.96344473,96511.0,96510.0,0.0131008]
[1739292764415,6.01344473,96511.0,96510.0,0.0121008]
[1739292764640,6.01344473,96511.0,96510.0,0.0111008]
[1739292765579,6.04386029,96511.0,96510.0,0.0111008]
[1739292766328,6.04386029,96511.0,96510.0,0.0121008]
[1739292766564,6.04686029,96511.0,96510.0,0.0121008]
[1739292766776,6.04686029,96511.0,96510.0,0.0111008]
[1739292766940,0.99386029,96511.0,96510.0,0.0111008]
[1739292767144,0.15,96510.0,96500.0,0.00413633]
[1739292767325,0.305438,96501.0,96500.0,0.00413633]
[1739292767543,0.3633415,96501.0,96500.0,0.00413633]
[1739292767750,0.00792,96501.0,96500.0,0.00413633]
[1739292767976,0.207253,96500.0,96489.0,0.01555294]
[1739292768195,0.207256,96499.0,96489.0,0.01555294]
[1739292768412,0.0263822,96498.0,96489.0,0.01555294]
[1739292768613,0.155454,96492.0,96489.0,0.01555294]
[1739292768877,0.0263822,96491.0,96489.0,0.01555294]
[1739292769042,0.0263822,96493.0,96489.0,0.01555294]
[1739292770069,0.01950526,96499.0,96490.0,0.00690755]
[1739292770265,0.01906118,96497.0,96490.0,0.00690755]
[1739292770494,0.01906118,96497.0,96489.0,0.01655294]
[1739292770727,0.04544338,96497.0,96489.0,0.01655294]
[1739292770950,0.04544338,96497.0,96489.0,0.01755294]
[1739292771182,0.0263822,96496.0,96489.0,0.01755294]
[1739292771422,0.01950526,96499.0,96492.0,0.207271]
[1739292771633,0.01950526,96499.0,96498.0,0.155443]
[1739292771840,0.01950526,96499.0,96492.0,0.11250365]
[1739292772073,0.01950526,96499.0,96494.0,0.02034069]
[1739292772280,0.01950526,96499.0,96496.0,0.155446]
[1739292772631,0.01950526,96499.0,96494.0,0.21998301]
[1739292772832,0.01950526,96499.0,96497.0,0.155445]
[1739292773343,0.00044408,96499.0,96496.0,0.155446]
[1739292773550,0.00044408,96499.0,96498.0,0.155443]
[1739292775167,0.00044408,96499.0,96498.0,0.156443]
[1739292775564,0.00044408,96499.0,96498.0,0.65128263]
[1739292775825,0.00044408,96499.0,96498.0,0.72864664]
[1739292775965,0.01906118,96504.0,96503.0,0.01]
[1739292776171,0.01906118,96504.0,96503.0,0.73072208]
[1739292776518,0.0001067,96511.0,96510.0,0.165424]
[1739292776719,0.0001067,96511.0,96510.0,0.72866329]
[1739292776948,0.0001067,96511.0,96510.0,0.72762764]
[1739292777364,0.0001067,96511.0,96510.0,0.68362763]
[1739292777541,0.0001067,96511.0,96510.0,0.78613128]
[1739292777917,0.0011067,96511.0,96510.0,0.79313128]
[1739292778333,0.0011067,96511.0,96510.0,0.80813128]
[1739292779173,0.15,96547.0,96524.0,0.155401]
[1739292779356,0.207155,96546.0,96525.0,0.155399]
[1739292779593,0.155379,96538.0,96527.0,0.155396]
[1739292779760,0.03040645,96546.0,96525.0,0.0155399]
[1739292779958,0.18040645,96546.0,96531.0,0.207186]
[1739292780158,0.18040645,96546.0,96514.0,0.023]
[1739292780342,0.18040645,96546.0,96517.0,0.023]
[1739292780538,0.155375,96541.0,96530.0,0.155391]
[1739292780720,0.155375,96541.0,96518.0,0.10250365]
[1739292780932,0.155372,96542.0,96531.0,0.15539]
[1739292781133,0.207157,96545.0,96519.0,0.06783797]
[1739292781134,0.207157,96545.0,96528.0,0.207192]
[1739292781382,0.155384,96535.0,96524.0,0.155401]
[1739292781585,0.15538,96538.0,96526.0,0.155397]
[1739292781784,0.15538,96538.0,96530.0,0.001]
[1739292781985,0.01,96539.0,96530.0,0.001]
[1739292782193,0.4430996,96538.0,96515.0,0.00103578]
[1739292782393,0.207159,96544.0,96517.0,0.023]
[1739292782542,0.0499,96551.0,96528.0,0.155394]
[1739292782543,0.207155,96546.0,96528.0,0.155394]
[1739292782761,0.01,96548.0,96521.0,0.076]
[1739292782966,0.01,96548.0,96525.0,0.155399]
[1739292782967,0.155382,96536.0,96525.0,0.155399]
[1739292783190,0.008,96548.0,96521.0,0.17850365]
[1739292783416,0.155366,96546.0,96534.0,0.155384]
[1739292783679,0.008,96548.0,96522.0,0.14881173]
[1739292783892,0.155365,96547.0,96535.0,0.155383]
[1739292784055,0.155365,96547.0,96531.0,0.003]
[1739292784056,0.008,96548.0,96531.0,0.003]
[1739292784230,0.155364,96547.0,96536.0,0.155381]
[1739292784411,0.217128,96559.0,96532.0,0.30170364]
[1739292784616,0.001,96546.0,96536.0,0.207176]
[1739292784848,0.001,96546.0,96542.0,0.155372]
[1739292785225,0.155355,96553.0,96542.0,0.155372]
[1739292785584,0.207132,96557.0,96533.0,0.06600036]
[1739292785761,0.155356,96553.0,96534.0,0.10250365]
[1739292785965,0.155356,96553.0,96542.0,0.155372]
[1739292786167,0.207134,96556.0,96543.0,0.15537]
[1739292786393,0.207134,96556.0,96534.0,0.10250365]
[1739292786394,0.001,96559.0,96540.0,0.207167]
[1739292786596,0.001,96547.0,96543.0,0.35456999]
[1739292786751,0.001,96559.0,96545.0,0.155366]
[1739292786954,0.0001067,96561.0,96546.0,0.19919999]
[1739292787199,0.003,96553.0,96546.0,0.15519998]
[1739292787543,0.207142,96552.0,96546.0,0.15519998]
[1739292787671,0.155358,96551.0,96546.0,0.15519998]
[1739292787888,0.155357,96552.0,96546.0,0.15519998]
[1739292788088,0.155355,96553.0,96546.0,0.15519998]
[1739292788293,0.207134,96556.0,96546.0,0.15519998]
[1739292788507,0.155355,96553.0,96546.0,0.15519998]
[1739292788715,0.155356,96552.0,96546.0,0.15519998]
[1739292789257,0.208128,96559.0,96546.0,0.15519998]
[1739292789668,0.207128,96559.0,96546.0,0.15519998]
[1739292789897,0.001,96551.0,96546.0,0.15519998]
[1739292790457,0.155357,96552.0,96546.0,0.15519998]
[1739292790654,0.207135,96556.0,96546.0,0.15519998]
[1739292790655,0.155351,96555.0,96546.0,0.15519998]
[1739292790859,0.003,96556.0,96546.0,0.2051436]
[1739292791083,0.001,96559.0,96557.0,0.155347]
[1739292791292,0.0001067,96561.0,96548.0,0.0240354]
[1739292791500,0.0001067,96561.0,96560.0,0.155343]
[1739292791696,0.0001067,96561.0,96560.0,0.154343]
[1739292792052,0.0001067,96561.0,96560.0,0.18949]
[1739292792172,0.0001067,96561.0,96560.0,0.036147]
[1739292792382,0.0001067,96561.0,96560.0,0.19149]
[1739292792824,0.0001067,96561.0,96549.0,0.10250365]
[1739292793063,0.0001067,96561.0,96548.0,0.00303539]
[1739292793303,0.0001067,96561.0,96549.0,0.10353915]
[1739292793785,0.0001067,96561.0,96550.0,0.207146]
[1739292794008,0.0011067,96561.0,96560.0,0.002]
[1739292794217,0.0011067,96561.0,96560.0,0.0157353]
[1739292794478,0.0001067,96561.0,96551.0,0.10250365]
[1739292794834,0.0001067,96561.0,96553.0,0.155353]
[1739292795060,0.0001067,96561.0,96553.0,0.25785665]
[1739292795355,0.0011067,96561.0,96553.0,0.25785665]
[1739292795552,0.0001067,96561.0,96553.0,0.10250365]
[1739292795796,0.0011067,96561.0,96553.0,0.10250365]
[1739292796183,0.0011067,96561.0,96554.0,0.15519998]
[1739292796986,0.0001067,96561.0,96554.0,0.15519998]
[1739292797180,0.0001067,96561.0,96554.0,0.11119997]
[1739292797959,0.0001067,96561.0,96554.0,0.12219997]
[1739292801074,0.0001067,96561.0,96555.0,0.10250365]
[1739292801289,0.0001067,96561.0,96560.0,0.230843]
[1739292801503,0.0001067,96561.0,96560.0,0.33334665]
[1739292801720,0.0001067,96561.0,96560.0,0.35634665]
[1739292801936,0.0001067,96561.0,96560.0,0.73784661]
[1739292802141,0.0001067,96561.0,96560.0,0.90894415]
[1739292802312,0.0001067,96561.0,96560.0,0.8561048]
[1739292802575,0.0001067,96561.0,96560.0,1.0114478]
[1739292803424,0.0001067,96561.0,96560.0,0.73594415]
[1739292803673,0.0001067,96561.0,96560.0,0.73284661]
[1739292803875,0.0001067,96561.0,96560.0,0.50200361]
[1739292804076,0.0001067,96561.0,96560.0,0.63934661]
[1739292804283,0.0001067,96561.0,96560.0,0.11119997]
[1739292804462,0.0011067,96561.0,96560.0,0.13319997]
[1739292804773,0.0001067,96561.0,96560.0,0.12619997]
[1739292804920,0.0011067,96561.0,96560.0,0.13319997]
[1739292805322,0.1564487,96561.0,96560.0,0.022]
[1739292805539,0.1564487,96561.0,96560.0,0.007]
[1739292805936,0.0011067,96561.0,96560.0,0.022]
[1739292806150,0.1564487,96561.0,96560.0,0.015]
[1739292806380,0.1554487,96561.0,96560.0,0.015]
[1739292806591,0.155345,96560.0,96549.0,0.15536]